fUSD/lending_fUSD_20250202
["ID","MTS","AMOUNT","RATE_DAILY","PERIOD"]
[351332179,1738516274582,-892.19,0.00011369,2]
[351332180,1738516274596,-500.0,0.00011369,2]
[351332181,1738516274610,-658.76,0.00011369,2]
[351332182,1738516274621,-500.0,0.00011369,2]
[351332183,1738516274631,-500.0,0.00011369,2]
[351332184,1738516274643,-505.10841534,0.00011369,2]
[351332185,1738516274655,-410.6594942,0.00011369,2]
[351332186,1738516274668,-1757.52,0.00011369,2]
[351332187,1738516274679,-500.0,0.00011369,2]
[351332188,1738516274691,-1228.76,0.00011369,2]
[351332189,1738516274701,-500.0,0.00011369,2]
[351332190,1738516274715,-1094.69,0.00011369,2]
[351332191,1738516274729,-500.0,0.00011369,2]
[351332192,1738516274739,-500.0,0.00011369,2]
[351332193,1738516274750,-500.0,0.00011369,2]
[351332194,1738516274761,-518.37,0.00011369,2]
[351332195,1738516274770,-500.0,0.00011369,2]
[351332196,1738516274780,-500.0,0.00011369,2]
[351332197,1738516274790,-500.0,0.00011369,2]
[351332198,1738516274800,-500.0,0.00011369,2]
[351332199,1738516274810,-3130.51,0.00011369,2]
[351332200,1738516274819,-500.0,0.00011369,2]
[351332201,1738516274828,-1929.48,0.00011369,2]
[351332202,1738516274838,-500.0,0.00011369,2]
[351332203,1738516274848,-500.0,0.00011369,2]
[351332204,1738516274858,-500.0,0.00011369,2]
[351332205,1738516274867,-500.0,0.00011369,2]
[351332206,1738516274877,-500.0,0.00011369,2]
[351332207,1738516274887,-1280.69,0.00011369,2]
[351332208,1738516274896,-500.0,0.00011369,2]
[351332209,1738516274907,-500.0,0.00011369,2]
[351332210,1738516274918,-1077.4,0.00011369,2]
[351332211,1738516274929,-421.35207052,0.00011369,2]
[351332212,1738516274940,-500.0,0.00011369,2]
[351332213,1738516274955,-500.0,0.00011369,2]
[351332214,1738516274968,-500.0,0.00011369,2]
[351332215,1738516274982,-500.0,0.00011369,2]
[351332216,1738516274994,-877.75,0.00011369,2]
[351332217,1738516275005,-2073.0,0.00011369,2]
[351332218,1738516275020,-330.66579045,0.00011369,2]
[351332219,1738516275029,-500.0,0.00011369,2]
[351332220,1738516275041,-4819.38,0.00011369,2]
[351332221,1738516275052,-500.0,0.00011369,2]
[351332222,1738516275064,-500.0,0.00011369,2]
[351332223,1738516275075,-1736.82,0.00011369,2]
[351332224,1738516275086,-500.0,0.00011369,2]
[351332225,1738516275098,-500.0,0.00011369,2]
[351332226,1738516275109,-700.48,0.00011369,2]
[351332227,1738516275119,-500.0,0.00011369,2]
[351332228,1738516275129,-202.63985807,0.00011369,2]
[351332229,1738516275140,-500.0,0.00011369,2]
[351332230,1738516275150,-1072.57,0.00011369,2]
[351332231,1738516275160,-3729.39,0.00011369,2]
[351332232,1738516275171,-500.0,0.00011369,2]
[351332233,1738516275181,-500.0,0.00011369,2]
[351332234,1738516275192,-500.0,0.00011369,2]
[351332235,1738516275202,-687.01,0.00011369,2]
[351332236,1738516275212,-1365.66,0.00011369,2]
[351332237,1738516275224,-806.824741,0.00011369,2]
[351332238,1738516275239,-500.0,0.00011369,2]
[351332239,1738516275250,-2303.89,0.00011369,2]
[351332240,1738516275260,-500.0,0.00011369,2]
[351332241,1738516275271,-1452.31,0.00011369,2]
[351332242,1738516275282,-4008.48,0.00011369,2]
[351332243,1738516275293,-1355.16,0.00011369,2]
[351332244,1738516275303,-500.0,0.00011369,2]
[351332245,1738516275313,-500.0,0.00011369,2]
[351332246,1738516275324,-1416.22,0.00011369,2]
[351332247,1738516275334,-3631.07,0.00011369,2]
[351332248,1738516275345,-500.0,0.00011369,2]
[351332249,1738516275355,-431.478325,0.00011369,2]
[351332250,1738516275365,-547.65,0.00011369,2]
[351332251,1738516275375,-500.0,0.00011369,2]
[351332252,1738516275385,-2391.97,0.00011369,2]
[351332253,1738516275396,-500.0,0.00011369,2]
[351332254,1738516275406,-878.43,0.00011369,2]
[351332255,1738516275416,-739.38,0.00011369,2]
[351332256,1738516275427,-658.78,0.00011369,2]
[351332257,1738516275437,-500.0,0.00011369,2]
[351332258,1738516275448,-500.0,0.00011369,2]
[351332259,1738516275635,-1291.62,0.00011369,2]
[351332260,1738516275646,-1768.17,0.00011369,2]
[351332261,1738516275656,-507.81004245,0.00011369,2]
[351332262,1738516275666,-715.219347,0.00011369,2]
[351332263,1738516275676,-500.0,0.00011369,2]
[351332264,1738516275686,-500.0,0.00011369,2]
[351332265,1738516275695,-500.0,0.00011369,2]
[351332266,1738516275706,-3801.08,0.00011369,2]
[351332267,1738516275715,-2540.16,0.00011369,2]
[351332268,1738516275726,-500.0,0.00011369,2]
[351332269,1738516275738,-474.746717,0.00011369,2]
[351332270,1738516275748,-1197.82,0.00011369,2]
[351332271,1738516275758,-710.0,0.00011369,2]
[351332272,1738516275768,-2156.68,0.00011369,2]
[351332273,1738516275778,-500.0,0.00011369,2]
[351332274,1738516275788,-502.23052983,0.00011369,2]
[351332275,1738516275798,-500.0,0.00011369,2]
[351332276,1738516275807,-5321.51,0.00011369,2]
[351332277,1738516275817,-500.0,0.00011369,2]
[351332278,1738516275827,-500.0,0.00011369,2]
[351332279,1738516275837,-583.29,0.00011369,2]
[351332280,1738516275847,-2286.17,0.00011369,2]
[351332281,1738516275858,-509.0696126,0.00011369,2]
[351332282,1738516275869,-3334.13,0.00011369,2]
[351332283,1738516275878,-709.12,0.00011369,2]
[351332284,1738516275888,-538.86,0.00011369,2]
[351332285,1738516275898,-788.53,0.00011369,2]
[351332286,1738516275909,-3213.09,0.00011369,2]
[351332287,1738516275920,-500.0,0.00011369,2]
[351332288,1738516275931,-503.71484956,0.00011369,2]
[351332289,1738516275942,-500.0,0.00011369,2]
[351332290,1738516275954,-500.0,0.00011369,2]
[351332291,1738516275966,-500.0,0.00011369,2]
[351332292,1738516275979,-500.0,0.00011369,2]
[351332293,1738516275990,-500.0,0.00011369,2]
[351332294,1738516276005,-500.0,0.00011369,2]
[351332295,1738516276016,-472.743312,0.00011369,2]
[351332296,1738516276027,-500.0,0.00011369,2]
[351332297,1738516276037,-3347.0,0.00011369,2]
[351332298,1738516276048,-500.0,0.00011369,2]
[351332299,1738516276058,-500.0,0.00011369,2]
[351332300,1738516276068,-500.0,0.00011369,2]
[351332301,1738516276080,-1791.3,0.00011369,2]
[351332302,1738516276090,-1865.45,0.00011369,2]
[351332303,1738516276100,-4126.51,0.00011369,2]
[351332304,1738516276109,-331.37192851,0.00011369,2]
[351332305,1738516276118,-599.68879,0.00011369,2]
[351332306,1738516276128,-1290.25,0.00011369,2]
[351332307,1738516276138,-500.0,0.00011369,2]
[351332308,1738516276148,-534.57,0.00011369,2]
[351332309,1738516276158,-2895.12,0.00011369,2]
[351332310,1738516276168,-4106.86,0.00011369,2]
[351332311,1738516276178,-1698.65,0.00011369,2]
[351332312,1738516276188,-500.0,0.00011369,2]
[351332313,1738516276198,-500.0,0.00011369,2]
[351332314,1738516276207,-500.0,0.00011369,2]
[351332315,1738516276217,-500.0,0.00011369,2]
[351332316,1738516276232,-448.017146,0.00011369,2]
[351332317,1738516276242,-855.64,0.00011369,2]
[351332318,1738516276252,-500.0,0.00011369,2]
[351332319,1738516276262,-500.0,0.00011369,2]
[351332320,1738516276272,-500.0,0.00011369,2]
[351332321,1738516276282,-7948.23,0.00011369,2]
[351332322,1738516276292,-3699.44,0.00011369,2]
[351332323,1738516276303,-1134.77,0.00011369,2]
[351332324,1738516276313,-1388.83,0.00011369,2]
[351332325,1738516276323,-1267.53,0.00011369,2]
[351332326,1738516276333,-1281.92,0.00011369,2]
[351332327,1738516276343,-700.239809,0.00011369,2]
[351332328,1738516276354,-1852.27,0.00011369,2]
[351332329,1738516276364,-772.18,0.00011369,2]
[351332330,1738516276375,-500.0,0.00011369,2]
[351332331,1738516276385,-22309.31,0.00011369,2]
[351332332,1738516276395,-10331.27,0.00011369,2]
[351332333,1738516276405,-3740.63,0.00011369,2]
[351332334,1738516276415,-500.0,0.00011369,2]
[351332335,1738516276425,-2548.06,0.00011369,2]
[351332336,1738516276435,-2430.52,0.00011369,2]
[351332337,1738516276444,-757.34,0.00011369,2]
[351332338,1738516276454,-500.0,0.00011369,2]
[351332339,1738516276464,-5491.14,0.00011369,2]
[351332340,1738516276474,-500.0,0.00011369,2]
[351332341,1738516276488,-500.0,0.00011369,2]
[351332342,1738516276498,-3483.73,0.00011369,2]
[351332343,1738516276508,-3375.4,0.00011369,2]
[351332344,1738516276517,-1965.31,0.00011369,2]
[351332345,1738516276526,-715.854792,0.00011369,2]
[351332346,1738516276537,-500.0,0.00011369,2]
[351332347,1738516276547,-573.22,0.00011369,2]
[351332348,1738516276556,-499.671825,0.00011369,2]
[351332349,1738516276565,-5575.16,0.00011369,2]
[351332350,1738516276576,-500.0,0.00011369,2]
[351332351,1738516276585,-3861.12,0.00011369,2]
[351332352,1738516276596,-500.0,0.00011369,2]
[351332353,1738516276605,-6565.29,0.00011369,2]
[351332354,1738516276615,-500.0,0.00011369,2]
[351332355,1738516276625,-2279.37,0.00011369,2]
[351332356,1738516276635,-1098.28,0.00011369,2]
[351332357,1738516276645,-500.0,0.00011369,2]
[351332358,1738516276655,-500.0,0.00011369,2]
[351332359,1738516276664,-5388.59,0.00011369,2]
[351332360,1738516276674,-1360.61,0.00011369,2]
[351332361,1738516276684,-500.0,0.00011369,2]
[351332362,1738516276693,-500.0,0.00011369,2]
[351332363,1738516276702,-500.0,0.00011369,2]
[351332364,1738516276712,-658.158992,0.00011369,2]
[351332365,1738516276722,-500.0,0.00011369,2]
[351332366,1738516276733,-2722.34,0.00011369,2]
[351332367,1738516276744,-864.3,0.00011369,2]
[351332368,1738516276754,-469.57071,0.00011369,2]
[351332369,1738516276763,-500.0,0.00011369,2]
[351332370,1738516276773,-3044.13,0.00011369,2]
[351332371,1738516276783,-500.0,0.00011369,2]
[351332372,1738516276793,-729.59,0.00011369,2]
[351332373,1738516276802,-500.0,0.00011369,2]
[351332374,1738516276812,-500.0,0.00011369,2]
[351332375,1738516276822,-3192.39,0.00011369,2]
[351332376,1738516276831,-1342.13,0.00011369,2]
[351332377,1738516276841,-3427.67,0.00011369,2]
[351332378,1738516276850,-2027.55,0.00011369,2]
[351332379,1738516276860,-500.0,0.00011369,2]
[351332380,1738516276869,-500.0,0.00011369,2]
[351332381,1738516276879,-500.0,0.00011369,2]
[351332382,1738516276889,-4252.01,0.00011369,2]
[351332383,1738516276900,-2583.64,0.00011369,2]
[351332384,1738516276909,-10284.26,0.00011369,2]
[351332385,1738516276919,-2652.56,0.00011369,2]
[351332386,1738516276928,-633.56,0.00011369,2]
[351332387,1738516276938,-1427.7,0.00011369,2]
[351332388,1738516276949,-12127.67,0.00011369,2]
[351332389,1738516276959,-555.992645,0.00011369,2]
[351332390,1738516276968,-576.949377,0.00011369,2]
[351332391,1738516276979,-500.0,0.00011369,2]
[351332392,1738516276988,-500.0,0.00011369,2]
[351332393,1738516276998,-500.0,0.00011369,2]
[351332394,1738516277007,-7300.52,0.00011369,2]
[351332395,1738516277019,-4063.4,0.00011369,2]
[351332396,1738516277029,-6290.38,0.00011369,2]
[351332397,1738516277039,-824.29,0.00011369,2]
[351332398,1738516277048,-1460.02,0.00011369,2]
[351332399,1738516277059,-500.0,0.00011369,2]
[351332400,1738516277070,-500.0,0.00011369,2]
[351332401,1738516277081,-500.0,0.00011369,2]
[351332402,1738516277091,-500.0,0.00011369,2]
[351332403,1738516277100,-2235.5,0.00011369,2]
[351332404,1738516277111,-1908.31,0.00011369,2]
[351332405,1738516277121,-7227.41,0.00011369,2]
[351332406,1738516277130,-500.0,0.00011369,2]
[351332407,1738516277141,-6243.33,0.00011369,2]
[351332408,1738516277151,-2827.59,0.00011369,2]
[351332409,1738516277161,-500.0,0.00011369,2]
[351332410,1738516277171,-911.77,0.00011369,2]
[351332411,1738516277180,-571.56294,0.00011369,2]
[351332412,1738516277190,-1653.28,0.00011369,2]
[351332413,1738516277199,-500.0,0.00011369,2]
[351332414,1738516277209,-500.0,0.00011369,2]
[351332415,1738516277218,-7297.29,0.00011369,2]
[351332416,1738516277229,-840.74,0.00011369,2]
[351332417,1738516277238,-500.0,0.00011369,2]
[351332418,1738516277248,-500.0,0.00011369,2]
[351332419,1738516277258,-500.0,0.00011369,2]
[351332420,1738516277268,-5332.32,0.00011369,2]
[351332421,1738516277278,-903.79,0.00011369,2]
[351332422,1738516277288,-1169.62,0.00011369,2]
[351332423,1738516277298,-3045.71,0.00011369,2]
[351332424,1738516277308,-169.35464611,0.00011369,2]
[351332425,1738516277318,-2256.46,0.00011369,2]
[351332426,1738516277328,-500.0,0.00011369,2]
[351332427,1738516277339,-500.0,0.00011369,2]
[351332428,1738516277349,-1943.86,0.00011369,2]
[351332429,1738516277359,-2045.5,0.00011369,2]
[351332430,1738516277369,-454.142217,0.00011369,2]
[351332431,1738516277379,-1318.91,0.00011369,2]
[351332432,1738516277389,-500.0,0.00011369,2]
[351332433,1738516277399,-500.0,0.00011369,2]
[351332434,1738516277410,-500.0,0.00011369,2]
[351332435,1738516277420,-2414.38,0.00011369,2]
[351332436,1738516277430,-554.542878,0.00011369,2]
[351332437,1738516277441,-1787.61,0.00011369,2]
[351332438,1738516277450,-719.96,0.00011369,2]
[351332439,1738516277460,-622.78034717,0.00011369,2]
[351332440,1738516277469,-500.0,0.00011369,2]
[351332441,1738516277479,-1536.13,0.00011369,2]
[351332442,1738516277488,-618.23,0.00011369,2]
[351332443,1738516277498,-1518.86,0.00011369,2]
[351332444,1738516277507,-628.12,0.00011369,2]
[351332445,1738516277517,-500.0,0.00011369,2]
[351332446,1738516277527,-11569.23,0.00011369,2]
[351332447,1738516277536,-2634.47,0.00011369,2]
[351332448,1738516277546,-826.16,0.00011369,2]
[351332449,1738516277555,-500.0,0.00011369,2]
[351332450,1738516277564,-3226.39,0.00011369,2]
[351332451,1738516277573,-5191.49,0.00011369,2]
[351332452,1738516277583,-3073.21,0.00011369,2]
[351332453,1738516277592,-6920.81,0.00011369,2]
[351332454,1738516277602,-500.0,0.00011369,2]
[351332455,1738516277612,-7847.47,0.00011369,2]
[351332456,1738516277621,-490.280531,0.00011369,2]
[351332457,1738516277631,-500.0,0.00011369,2]
[351332458,1738516277640,-2251.09,0.00011369,2]
[351332459,1738516277650,-614.64,0.00011369,2]
[351332460,1738516277661,-500.0,0.00011369,2]
[351332461,1738516277671,-1544.32,0.00011369,2]
[351332462,1738516277681,-708.79,0.00011369,2]
[351332463,1738516277690,-500.0,0.00011369,2]
[351332464,1738516277700,-500.0,0.00011369,2]
[351332465,1738516277710,-2556.72,0.00011369,2]
[351332466,1738516277719,-500.0,0.00011369,2]
[351332467,1738516277732,-1500.0,0.00011422,2]
[351332468,1738516277741,-166.66,0.00011437,2]
[351332469,1738516277752,-574.61,0.0001145,2]
[351332470,1738516277762,-500.0,0.00011505,2]
[351332471,1738516277772,-500.0,0.00011505,2]
[351332472,1738516277782,-500.0,0.00011505,2]
[351332473,1738516277792,-500.0,0.00011505,2]
[351332474,1738516277802,-500.0,0.00011505,2]
[351332475,1738516277813,-500.0,0.00011505,2]
[351332476,1738516277822,-500.0,0.00011505,2]
[351332477,1738516277833,-500.0,0.00011505,2]
[351332478,1738516277843,-500.0,0.00011505,2]
[351332479,1738516277853,-500.0,0.00011505,2]
[351332480,1738516277864,-500.0,0.00011505,2]
[351332481,1738516277875,-500.0,0.00011505,2]
[351332482,1738516277884,-500.0,0.00011505,2]
[351332483,1738516277892,-500.0,0.00011505,2]
[351332484,1738516277901,-500.0,0.00011505,2]
[351332485,1738516277911,-500.0,0.00011505,2]
[351332486,1738516277920,-177.36438688,0.00011505,2]
[351332487,1738516277929,-655.84,0.00011505,2]
[351332488,1738516277939,-500.0,0.00011505,2]
[351332489,1738516277949,-500.0,0.00011505,2]
[351332490,1738516277959,-544.61,0.00011505,2]
[351332491,1738516277969,-500.0,0.00011505,2]
[351332492,1738516277978,-500.0,0.00011505,2]
[351332493,1738516277992,-684.7,0.00011505,2]
[351332494,1738516278006,-500.0,0.00011505,2]
[351332495,1738516278016,-500.0,0.00011505,2]
[351332496,1738516278026,-500.0,0.00011505,2]
[351332497,1738516278036,-359.21748117,0.00011505,2]
[351332498,1738516278047,-1092.39,0.00011505,2]
[351332499,1738516278058,-500.0,0.00011505,2]
[351332500,1738516278068,-500.0,0.00011505,2]
[351332501,1738516278077,-654.63,0.00011505,2]
[351332502,1738516278087,-226.90460675,0.00011505,2]
[351332503,1738516278097,-624.83,0.00011505,2]
[351332504,1738516278107,-560.19,0.00011505,2]
[351332505,1738516278118,-500.0,0.00011505,2]
[351332506,1738516278128,-500.0,0.00011505,2]
[351332507,1738516278138,-500.0,0.00011505,2]
[351332508,1738516278147,-500.0,0.00011505,2]
[351332509,1738516278157,-1210.49,0.00011505,2]
[351332510,1738516278167,-554.48,0.00011505,2]
[351332511,1738516278177,-548.48540258,0.00011505,2]
[351332512,1738516278188,-500.0,0.00011505,2]
[351332513,1738516278198,-500.0,0.00011505,2]
[351332514,1738516278207,-500.0,0.00011505,2]
[351332515,1738516278217,-500.0,0.00011505,2]
[351332516,1738516278231,-500.0,0.00011505,2]
[351332517,1738516278241,-713.02,0.00011505,2]
[351332518,1738516278250,-505.01159636,0.00011505,2]
[351332519,1738516278260,-500.0,0.00011505,2]
[351332520,1738516278270,-500.0,0.00011505,2]
[351332521,1738516278280,-1374.75,0.00011505,2]
[351332522,1738516278290,-710.67,0.00011505,2]
[351332523,1738516278300,-500.0,0.00011505,2]
[351332524,1738516278310,-500.0,0.00011505,2]
[351332525,1738516278320,-500.0,0.00011505,2]
[351332526,1738516278330,-500.0,0.00011505,2]
[351332527,1738516278339,-1427.71,0.00011505,2]
[351332528,1738516278350,-500.0,0.00011505,2]
[351332529,1738516278359,-523.55894773,0.00011505,2]
[351332530,1738516278369,-500.0,0.00011505,2]
[351332531,1738516278378,-1604.84,0.00011505,2]
[351332532,1738516278388,-500.0,0.00011505,2]
[351332533,1738516278399,-500.0,0.00011505,2]
[351332534,1738516278409,-500.0,0.00011505,2]
[351332535,1738516278420,-500.0,0.00011505,2]
[351332536,1738516278431,-500.0,0.00011505,2]
[351332537,1738516278441,-1584.96,0.00011505,2]
[351332538,1738516278452,-500.0,0.00011505,2]
[351332539,1738516278462,-500.0,0.00011505,2]
[351332540,1738516278472,-876.74,0.00011505,2]
[351332541,1738516278486,-569.44,0.00011505,2]
[351332542,1738516278496,-568.65,0.00011505,2]
[351332543,1738516278508,-716.72,0.00011505,2]
[351332544,1738516278518,-500.0,0.00011505,2]
[351332545,1738516278529,-500.0,0.00011505,2]
[351332546,1738516278539,-648.71,0.00011505,2]
[351332547,1738516278548,-500.0,0.00011505,2]
[351332548,1738516278559,-500.0,0.00011505,2]
[351332549,1738516278569,-500.0,0.00011505,2]
[351332550,1738516278579,-2106.98,0.00011505,2]
[351332551,1738516278588,-500.0,0.00011505,2]
[351332552,1738516278599,-500.0,0.00011505,2]
[351332553,1738516278609,-986.39,0.00011505,2]
[351332554,1738516278619,-500.0,0.00011505,2]
[351332555,1738516278630,-500.0,0.00011505,2]
[351332556,1738516278640,-500.0,0.00011505,2]
[351332557,1738516278650,-1832.2,0.00011505,2]
[351332558,1738516278660,-500.0,0.00011505,2]
[351332559,1738516278670,-500.0,0.00011505,2]
[351332560,1738516278681,-500.0,0.00011505,2]
[351332561,1738516278691,-500.0,0.00011505,2]
[351332562,1738516278700,-500.0,0.00011505,2]
[351332563,1738516278710,-500.0,0.00011505,2]
[351332564,1738516278720,-1788.45,0.00011505,2]
[351332565,1738516278734,-500.0,0.00011505,2]
[351332566,1738516278744,-500.0,0.00011505,2]
[351332567,1738516278754,-500.0,0.00011505,2]
[351332568,1738516278764,-593.9,0.00011505,2]
[351332569,1738516278774,-500.0,0.00011505,2]
[351332570,1738516278784,-500.0,0.00011505,2]
[351332571,1738516278795,-500.0,0.00011505,2]
[351332572,1738516278804,-579.35684352,0.00011505,2]
[351332573,1738516278814,-836.62,0.00011505,2]
[351332574,1738516278824,-500.0,0.00011505,2]
[351332575,1738516278834,-500.0,0.00011505,2]
[351332576,1738516278844,-500.0,0.00011505,2]
[351332577,1738516278854,-500.0,0.00011505,2]
[351332578,1738516278864,-500.0,0.00011505,2]
[351332579,1738516278873,-500.0,0.00011505,2]
[351332580,1738516278884,-1413.27,0.00011505,2]
[351332581,1738516278894,-500.0,0.00011505,2]
[351332582,1738516278904,-500.0,0.00011505,2]
[351332583,1738516278915,-500.0,0.00011505,2]
[351332584,1738516278925,-500.0,0.00011505,2]
[351332585,1738516278935,-1365.43,0.00011505,2]
[351332586,1738516278944,-500.0,0.00011505,2]
[351332587,1738516278955,-500.0,0.00011505,2]
[351332588,1738516278965,-236.6508488,0.00011505,2]
[351332589,1738516278975,-346.8922052,0.00011505,2]
[351332590,1738516278989,-500.0,0.00011505,2]
[351332591,1738516278999,-500.0,0.00011505,2]
[351332592,1738516279010,-730.63,0.00011505,2]
[351332593,1738516279022,-500.0,0.00011505,2]
[351332594,1738516279032,-500.0,0.00011505,2]
[351332595,1738516279043,-769.72,0.00011505,2]
[351332596,1738516279053,-500.0,0.00011505,2]
[351332597,1738516279063,-504.22689641,0.00011505,2]
[351332598,1738516279073,-500.0,0.00011505,2]
[351332599,1738516279084,-500.0,0.00011505,2]
[351332600,1738516279094,-500.0,0.00011505,2]
[351332601,1738516279107,-500.0,0.00011505,2]
[351332602,1738516279118,-662.11,0.00011505,2]
[351332603,1738516279130,-500.0,0.00011505,2]
[351332604,1738516279141,-500.0,0.00011505,2]
[351332605,1738516279153,-500.0,0.00011505,2]
[351332606,1738516279165,-500.0,0.00011505,2]
[351332607,1738516279175,-500.0,0.00011505,2]
[351332608,1738516279185,-500.0,0.00011505,2]
[351332609,1738516279196,-500.0,0.00011505,2]
[351332610,1738516279206,-500.0,0.00011505,2]
[351332611,1738516279216,-500.0,0.00011505,2]
[351332612,1738516279226,-500.0,0.00011505,2]
[351332613,1738516279239,-500.0,0.00011505,2]
[351332614,1738516279249,-500.0,0.00011505,2]
[351332615,1738516279260,-500.0,0.00011505,2]
[351332616,1738516279270,-500.0,0.00011505,2]
[351332617,1738516279282,-500.0,0.00011505,2]
[351332618,1738516279292,-500.0,0.00011505,2]
[351332619,1738516279302,-500.0,0.00011505,2]
[351332620,1738516279312,-500.0,0.00011505,2]
[351332621,1738516279323,-500.0,0.00011505,2]
[351332622,1738516279333,-500.0,0.00011505,2]
[351332623,1738516279344,-500.0,0.00011505,2]
[351332624,1738516279354,-500.0,0.00011505,2]
[351332625,1738516279365,-582.41638355,0.00011505,2]
[351332626,1738516279375,-500.0,0.00011505,2]
[351332627,1738516279385,-500.0,0.00011505,2]
[351332628,1738516279395,-500.0,0.00011505,2]
[351332629,1738516279405,-327.57087643,0.00011505,2]
[351332630,1738516279415,-500.0,0.00011505,2]
[351332631,1738516279425,-500.0,0.00011505,2]
[351332632,1738516279436,-500.0,0.00011505,2]
[351332633,1738516279446,-506.58122576,0.00011505,2]
[351332634,1738516279456,-500.0,0.00011505,2]
[351332635,1738516279467,-500.0,0.00011505,2]
[351332636,1738516279477,-500.0,0.00011505,2]
[351332637,1738516279489,-500.0,0.00011505,2]
[351332638,1738516279499,-500.0,0.00011505,2]
[351332639,1738516279509,-500.0,0.00011505,2]
[351332640,1738516279519,-500.0,0.00011505,2]
[351332641,1738516279528,-500.0,0.00011505,2]
[351332642,1738516279538,-500.0,0.00011505,2]
[351332643,1738516279547,-500.0,0.00011505,2]
[351332644,1738516279558,-500.0,0.00011505,2]
[351332645,1738516279568,-500.0,0.00011505,2]
[351332646,1738516279578,-500.0,0.00011505,2]
[351332647,1738516279588,-500.0,0.00011505,2]
[351332648,1738516279599,-500.0,0.00011505,2]
[351332649,1738516279609,-500.0,0.00011505,2]
[351332650,1738516279619,-500.0,0.00011505,2]
[351332651,1738516279630,-500.0,0.00011505,2]
[351332652,1738516279640,-500.0,0.00011505,2]
[351332653,1738516279651,-500.0,0.00011505,2]
[351332654,1738516279662,-500.0,0.00011505,2]
[351332655,1738516279672,-500.0,0.00011505,2]
[351332656,1738516279682,-500.0,0.00011505,2]
[351332657,1738516279694,-553.02,0.00011505,2]
[351332658,1738516279705,-500.0,0.00011505,2]
[351332659,1738516279716,-542.96,0.00011505,2]
[351332660,1738516279726,-500.0,0.00011505,2]
[351332661,1738516279738,-859.6,0.00011505,2]
[351332662,1738516279748,-500.0,0.00011505,2]
[351332663,1738516279758,-500.0,0.00011505,2]
[351332664,1738516279768,-500.0,0.00011505,2]
[351332665,1738516279779,-500.0,0.00011505,2]
[351332666,1738516279789,-738.49,0.00011505,2]
[351332667,1738516279799,-407.26246504,0.00011505,2]
[351332668,1738516279810,-500.0,0.00011505,2]
[351332669,1738516279820,-529.29413794,0.00011505,2]
[351332670,1738516279830,-659.82,0.00011506,2]
[351332671,1738516280019,-1818.08,0.00011506,2]
[351332672,1738516280030,-1383.94,0.00011506,2]
[351332673,1738516280040,-1632.92,0.00011506,2]
[351332674,1738516280051,-500.0,0.00011506,2]
[351332675,1738516280061,-500.0,0.00011506,2]
[351332676,1738516280071,-500.0,0.00011506,2]
[351332677,1738516280081,-500.0,0.00011506,2]
[351332678,1738516280092,-1496.05,0.00011506,2]